[Event "XII Paracin Festival 2019"]
[Site "Paracin"]
[Date "2019.07.06"]
[Round "3.3"]
[White "Lee, Jun Hyeok"]
[Black "Asadli, Vugar"]
[Result "0-1"]
[ECO "A04"]
[WhiteElo "2383"]
[BlackElo "2502"]
[Annotator "ChessBase"]
[PlyCount "92"]
[EventDate "2019.07.05"]
[EventType "swiss"]
[EventCountry "SRB"]
[SourceTitle "playchess.com"]
[Source "ChessBase"]
[SourceQuality "1"]
[TimeControl "5400+30"]

1. Nf3 {[%emt 0:00:00]} g6 {[%emt 0:05:51]} 2. e4 {[%emt 0:00:55]} Bg7 {[%emt 0:01:14]} 3. d4 {[%emt 0:00:07]} d6 {[%emt 0:00:05]} 4. Bc4 {[%emt 0:00:29]} e6 {[%emt 0:01:59]} 5. O-O {[%emt 0:01:03]} Ne7 {[%emt 0:00:09]} 6. c3 {[%emt 0:01:05]} O-O {[%emt 0:01:37]} 7. Re1 {[%emt 0:02:01]} b6 {[%emt 0:01:16]} 8. Nbd2 {[%emt 0:01:32]} Bb7 {[%emt 0:01:04]} 9. Bb3 {[%emt 0:00:21]} c5 {[%emt 0:04:30]} 10. Nf1 {[%emt 0:09:23]} Nbc6 {[%emt 0:01:33]} 11. Ne3 {[%emt 0:12:24]} Na5 {[%emt 0:04:58]} 12. Bc2 {[%emt 0:01:15]} Rc8 {[%emt 0:01:18]} 13. Qe2 {[%emt 0:03:03]} cxd4 {[%emt 0:09:30]} 14. cxd4 {[%emt 0:04:06]} Nac6 {[%emt 0:01:26]} 15. Qd1 {[%emt 0:03:17]} Qc7 {[%emt 0:03:52]} 16. Bb1 {[%emt 0:06:56]} e5 {[%emt 0:02:53]} 17. d5 {[%emt 0:01:45]} Nd4 {[%emt 0:01:11]} 18. Nxd4 {[%emt 0:00:38]} exd4 {[%emt 0:00:02]} 19. Nf1 {[%emt 0:00:08]} f5 {[%emt 0:03:04]} 20. Bg5 {[%emt 0:15:57]} fxe4 {[%emt 0:05:44]} 21. Bxe4 {[%emt 0:00:59]} Rf7 {[%emt 0:16:21]} 22. Qa4 {[%emt 0:05:43]} Rcf8 {[%emt 0:00:16]} 23. Qxa7 {[%emt 0:09:01]} Nc8 {[%emt 0:08:58]} 24. Qa3 {[%emt 0:00:16]} Rxf2 {[%emt 0:00:36]} 25. Rac1 {[%emt 0:00:55]} Qd7 {[%emt 0:00:09]} 26. Bh4 {[%emt 0:04:33]} R2f7 {[%emt 0:01:02]} 27. Nd2 {[%emt 0:00:54]} Bh6 {[%emt 0:01:29]} 28. Qd3 {[%emt 0:04:41]} Qg4 {[%emt 0:00:43]} 29. Bg3 {[%emt 0:00:45]} Ba6 {[%emt 0:00:37]} 30. Qxa6 {[%emt 0:01:47]} Bxd2 {[%emt 0:00:41]} 31. Bf3 {[%emt 0:00:52]} Qf5 {[%emt 0:04:23]} 32. Qc4 {[%emt 0:00:53]} Qg5 {[%emt 0:02:37]} 33. Rcd1 {[%emt 0:01:53]} Ne7 {[%emt 0:00:14]} 34. Re4 {[%emt 0:04:12]} Nf5 {[%emt 0:02:20]} 35. Rg4 {[%emt 0:00:44]} Be3+ {[%emt 0:01:21]} 36. Kh1 {[%emt 0:00:25]} Nxg3+ {[%emt 0:00:56]} 37. hxg3 {[%emt 0:01:25]} Qe5 {[%emt 0:00:42]} 38. Kh2 {[%emt 0:01:19]} Rf5 {[%emt 0:00:39]} 39. Rh4 {[%emt 0:00:13]} Bf2 {[%emt 0:00:39]} 40. Rh3 {[%emt 0:00:31]} Bxg3+ {[%emt 0:01:15]} 41. Kh1 {[%emt 0:00:05]} Re8 {[%emt 0:01:33]} 42. Rf1 {[%emt 0:01:18]} h5 {[%emt 0:00:41]} 43. a4 h4 {[%emt 0:00:19]} 44. b4 {[%emt 0:01:12]} g5 {[%emt 0:00:33]} 45. Rg1 {[%emt 0:00:56]} Qe3 {[%emt 0:00:41]} 46. Qc2 {[%emt 0:00:26]} Qxg1+ {[%emt 0:00:06]} 0-1

[Event "XII Paracin Festival 2019"]
[Site "Paracin"]
[Date "2019.07.06"]
[Round "3.4"]
[White "Stojanovic, Mihajlo"]
[Black "Tanriverdi, Enes"]
[Result "1/2-1/2"]
[ECO "E73"]
[WhiteElo "2483"]
[BlackElo "2374"]
[Annotator "ChessBase"]
[PlyCount "31"]
[EventDate "2019.07.05"]
[EventType "swiss"]
[EventCountry "SRB"]
[SourceTitle "playchess.com"]
[Source "ChessBase"]
[SourceQuality "1"]
[TimeControl "5400+30"]

1. d4 {[%emt 0:00:00]} Nf6 {[%emt 0:00:00]} 2. c4 {[%emt 0:00:00]} g6 {[%emt 0:00:00]} 3. Nc3 {[%emt 0:00:00]} Bg7 {[%emt 0:00:01]} 4. e4 {[%emt 0:00:00]} d6 {[%emt 0:00:21]} 5. Be2 {[%emt 0:00:00]} O-O {[%emt 0:00:19]} 6. Be3 {[%emt 0:00:05]} e5 {[%emt 0:14:28]} 7. d5 {[%emt 0:00:09]} Na6 {[%emt 0:00:55]} 8. g4 {[%emt 0:01:17]} Nc5 {[%emt 0:00:06]} 9. f3 {[%emt 0:00:09]} h5 {[%emt 0:00:31]} 10. g5 {[%emt 0:05:33]} Nh7 {[%emt 0:00:22]} 11. h4 {[%emt 0:05:02]} f6 {[%emt 0:00:05]} 12. Qd2 {[%emt 0:00:15]} fxg5 {[%emt 0:00:07]} 13. hxg5 {[%emt 0:00:07]} Rf4 {[%emt 0:00:05]} 14. Bxf4 {[%emt 0:00:28]} exf4 {[%emt 0:00:22]} 15. Qxf4 {[%emt 0:01:55]} Be5 {[%emt 0:01:35]} 16. Qe3 {[%emt 0:05:31]} 1/2-1/2

[Event "XII Paracin Festival 2019"]
[Site "Paracin"]
[Date "2019.07.06"]
[Round "3.5"]
[White "Petrov, Martin"]
[Black "Koksal, Ege"]
[Result "1/2-1/2"]
[ECO "C50"]
[WhiteElo "2480"]
[BlackElo "2368"]
[Annotator "ChessBase"]
[PlyCount "41"]
[EventDate "2019.07.05"]
[EventType "swiss"]
[EventCountry "SRB"]
[SourceTitle "playchess.com"]
[Source "ChessBase"]
[SourceQuality "1"]
[TimeControl "5400+30"]

1. e4 {[%emt 0:00:00]} e5 {[%emt 0:01:37]} 2. Nf3 {[%emt 0:00:00]} Nc6 {[%emt 0:00:04]} 3. Bc4 {[%emt 0:00:00]} Bc5 {[%emt 0:00:03]} 4. d3 {[%emt 0:00:10]} Nf6 {[%emt 0:00:26]} 5. O-O {[%emt 0:00:07]} d6 {[%emt 0:00:06]} 6. c3 {[%emt 0:00:09]} a6 {[%emt 0:01:07]} 7. a4 {[%emt 0:00:07]} Ba7 {[%emt 0:00:25]} 8. Nbd2 {[%emt 0:00:44]} O-O {[%emt 0:02:28]} 9. h3 {[%emt 0:01:54]} h6 {[%emt 0:00:13]} 10. Re1 {[%emt 0:00:40]} Ne7 {[%emt 0:04:19]} 11. Bb3 {[%emt 0:00:42]} Ng6 {[%emt 0:02:56]} 12. d4 {[%emt 0:01:47]} Nh7 {[%emt 0:06:10]} 13. Nf1 {[%emt 0:17:23]} Nh4 {[%emt 0:08:02]} 14. N1h2 {[%emt 0:06:44]} Nxf3+ {[%emt 0:04:28]} 15. Nxf3 {[%emt 0:00:05]} Qf6 {[%emt 0:00:44]} 16. Be3 {[%emt 0:02:46]} Re8 {[%emt 0:07:01]} 17. a5 {[%emt 0:14:34]} Nf8 {[%emt 0:04:38]} 18. Nh2 {[%emt 0:07:11]} Qg6 {[%emt 0:09:38]} 19. Qf3 {[%emt 0:01:44]} Be6 {[%emt 0:03:04]} 20. Bc2 {[%emt 0:02:46]} Nh7 {[%emt 0:03:34]} 21. dxe5 {[%emt 0:05:51]} 1/2-1/2

[Event "XII Paracin Festival 2019"]
[Site "Paracin"]
[Date "2019.07.06"]
[Round "3.6"]
[White "Nie, Xinyang"]
[Black "Song, Raymond"]
[Result "0-1"]
[ECO "B18"]
[WhiteElo "2375"]
[BlackElo "2456"]
[Annotator "ChessBase"]
[PlyCount "65"]
[EventDate "2019.07.05"]
[EventType "swiss"]
[EventCountry "SRB"]
[SourceTitle "playchess.com"]
[Source "ChessBase"]
[SourceQuality "1"]
[TimeControl "5400+30"]

1. e4 {[%emt 0:00:00]} c6 {[%emt 0:00:08]} 2. d4 {[%emt 0:00:00]} d5 {[%emt 0:00:02]} 3. Nc3 {[%emt 0:00:00]} dxe4 {[%emt 0:00:03]} 4. Nxe4 {[%emt 0:00:00]} Bf5 {[%emt 0:00:05]} 5. Ng3 {[%emt 0:00:00]} Bg6 {[%emt 0:00:04]} 6. N1e2 {[%emt 0:00:00]} Nf6 {[%emt 0:00:06]} 7. Nf4 {[%emt 0:00:04]} e5 {[%emt 0:00:05]} 8. Nxg6 {[%emt 0:02:52]} hxg6 {[%emt 0:00:06]} 9. Be3 {[%emt 0:00:36]} Nbd7 {[%emt 0:02:52]} 10. c3 {[%emt 0:02:07]} Qc7 {[%emt 0:07:54]} 11. Qb3 {[%emt 0:06:21]} exd4 {[%emt 0:01:13]} 12. Bxd4 {[%emt 0:00:07]} Bc5 {[%emt 0:00:18]} 13. Bc4 {[%emt 0:05:18]} O-O {[%emt 0:01:06]} 14. Bxf6 {[%emt 0:00:20]} Rae8+ {[%emt 0:00:55]} 15. Be2 {[%emt 0:00:07]} gxf6 {[%emt 0:01:04]} 16. O-O {[%emt 0:00:34]} f5 {[%emt 0:00:46]} 17. Qc2 {[%emt 0:05:07]} Kg7 {[%emt 0:06:31]} 18. Rad1 {[%emt 0:05:31]} Nf6 {[%emt 0:07:35]} 19. Bf3 {[%emt 0:01:15]} Qe5 {[%emt 0:07:47]} 20. Qc1 {[%emt 0:10:07]} Bb6 {[%emt 0:05:21]} 21. Rfe1 {[%emt 0:19:22]} Qc5 {[%emt 0:00:05]} 22. Rf1 {[%emt 0:00:03]} Ne4 {[%emt 0:05:33]} 23. Qf4 {[%emt 0:06:54]} Nxg3 {[%emt 0:04:48]} 24. Qxg3 {[%emt 0:00:09]} Re6 {[%emt 0:04:16]} 25. Qf4 {[%emt 0:02:26]} Rd8 {[%emt 0:02:19]} 26. h4 {[%emt 0:04:16]} Rxd1 {[%emt 0:00:06]} 27. Bxd1 {[%emt 0:00:04]} Re4 {[%emt 0:00:32]} 28. Qg3 Qe7 {[%emt 0:04:24]} 29. h5 {[%emt 0:00:50]} Bc7 {[%emt 0:00:05]} 30. Qd3 {[%emt 0:00:56]} gxh5 {[%emt 0:01:48]} 31. Bf3 {[%emt 0:00:07]} Qh4 {[%emt 0:00:53]} 32. Bd1 Qd8 33. g3 0-1

[Event "XII Paracin Festival 2019"]
[Site "Paracin"]
[Date "2019.07.06"]
[Round "3.7"]
[White "Pikula, Dejan"]
[Black "Avalyan, Artur"]
[Result "0-1"]
[ECO "C00"]
[WhiteElo "2447"]
[BlackElo "2351"]
[Annotator "NA"]
[PlyCount "104"]
[EventDate "2019.07.05"]
[EventType "swiss"]
[EventCountry "SRB"]
[SourceTitle "playchess.com"]
[Source "ChessBase"]
[SourceQuality "1"]
[TimeControl "5400+30"]

1. e4 {[%emt 0:00:00]} e6 {[%emt 0:00:00]} 2. d3 {[%emt 0:00:00]} d5 {[%emt 0:00:00]} 3. Qe2 {[%emt 0:00:04]} Nf6 {[%emt 0:00:29]} 4. Nf3 {[%emt 0:00:07]} Be7 {[%emt 0:00:04]} 5. g3 {[%emt 0:00:04]} b5 {[%emt 0:00:42]} 6. e5 {[%emt 0:02:18]} Nfd7 {[%emt 0:00:06]} 7. Bg2 {[%emt 0:00:08]} c5 {[%emt 0:00:55]} 8. O-O {[%emt 0:00:43]} O-O {[%emt 0:00:03]} 9. c3 {[%emt 0:00:06]} a5 {[%emt 0:00:24]} 10. a4 {[%emt 0:00:14]} bxa4 {[%emt 0:01:58]} 11. Rxa4 {[%emt 0:00:24]} Nc6 {[%emt 0:00:30]} 12. Re1 {[%emt 0:00:56]} Ba6 {[%emt 0:03:25]} 13. h4 {[%emt 0:02:00]} Bb5 {[%emt 0:13:47]} 14. Ra1 {[%emt 0:00:46]} a4 {[%emt 0:02:15]} 15. c4 {[%emt 0:08:18]} dxc4 {[%emt 0:13:25]} 16. dxc4 {[%emt 0:00:07]} Ba6 {[%emt 0:00:03]} 17. Rd1 {[%emt 0:10:44]} Qc7 {[%emt 0:06:02]} 18. Bf4 {[%emt 0:04:14]} Nb6 {[%emt 0:00:54]} 19. Na3 {[%emt 0:00:25]} Nd5 {[%emt 0:09:58]} 20. Qe4 {[%emt 0:04:57]} Nxf4 {[%emt 0:01:21]} 21. gxf4 {[%emt 0:01:59]} Rab8 {[%emt 0:01:56]} 22. Rd2 {[%emt 0:08:08]} Nd4 {[%emt 0:15:36]} 23. Nxd4 {[%emt 0:06:43]} cxd4 {[%emt 0:00:04]} 24. Qc2 {[%emt 0:09:05]} Rb4 {[%emt 0:04:54]} 25. Rxd4 {[%emt 0:03:02]} Rfb8 {[%emt 0:00:43]} 26. Rd2 {[%emt 0:07:22]} h5 {[%emt 0:01:12]} 27. Rad1 {[%emt 0:07:10]} Qa5 {[%emt 0:03:42]} 28. Qc3 {[%emt 0:10:39]} Qc5 {[%emt 0:01:42]} 29. Qf3 {[%emt 0:00:28]} g6 {[%emt 0:03:57]} 30. f5 {[%emt 0:00:38]} exf5 {[%emt 0:00:59]} 31. e6 {[%emt 0:02:31]} fxe6 {[%emt 0:01:00]} 32. Qg3 {[%emt 0:00:06]} Kf7 {[%emt 0:00:22]} 33. Nb5 {[%emt 0:01:23]} R8xb5 {[%emt 0:01:03]} 34. cxb5 {[%emt 0:00:06]} Bxb5 {[%emt 0:00:01]} 35. Bf3 {[%emt 0:03:09]} Rxh4 {[%emt 0:03:11]} 36. Re1 {[%emt 0:00:37]} Bc6 {[%emt 0:03:23]} 37. Rde2 {[%emt 0:02:14]} f4 {[%emt 0:04:25]} 38. Qg2 {[%emt 0:00:30]} Rg4 {[%emt 0:00:16]} 39. Bxg4 {[%emt 0:00:07]} Bxg2 {[%emt 0:00:02]} 40. Bxe6+ {[%emt 0:00:04]} Kf6 {[%emt 0:00:02]} 41. Kxg2 {[%emt 0:00:03]} Qc6+ {[%emt 0:02:02]} 42. Re4 {[%emt 0:02:59]} Bb4 {[%emt 0:00:29]} 43. R1e2 {[%emt 0:00:12]} Kg5 {[%emt 0:00:07]} 44. f3 {[%emt 0:01:01]} Qd6 {[%emt 0:03:16]} 45. Bf7 {[%emt 0:00:08]} Bc5 {[%emt 0:00:33]} 46. Kh2 {[%emt 0:01:29]} Kh4 {[%emt 0:00:16]} 47. Bxg6 {[%emt 0:00:21]} Qd1 {[%emt 0:00:41]} 48. Rg2 {[%emt 0:03:39]} Qxf3 {[%emt 0:00:10]} 49. Bf5 {[%emt 0:00:00]} Bf2 {[%emt 0:00:22]} 50. Rb4 {[%emt 0:01:03]} Bg3+ {[%emt 0:00:04]} 51. Kh1 {[%emt 0:00:03]} Qf1+ {[%emt 0:00:20]} 52. Rg1 {[%emt 0:00:19]} Qf2 {[%emt 0:00:17]} 0-1

[Event "XII Paracin Festival 2019"]
[Site "Paracin"]
[Date "2019.07.06"]
[Round "3.8"]
[White "Bashirli, Nail"]
[Black "Cabarkapa, Novak"]
[Result "1-0"]
[ECO "C07"]
[WhiteElo "2367"]
[BlackElo "2444"]
[Annotator "NA"]
[PlyCount "77"]
[EventDate "2019.07.05"]
[EventType "swiss"]
[EventCountry "SRB"]
[SourceTitle "playchess.com"]
[Source "ChessBase"]
[SourceQuality "1"]
[TimeControl "5400+30"]

1. e4 {[%emt 0:09:21]} e6 {[%emt 0:00:00]} 2. d4 {[%emt 0:01:05]} d5 {[%emt 0:00:00]} 3. Nd2 {[%emt 0:00:03]} c5 {[%emt 0:00:13]} 4. Ngf3 {[%emt 0:00:06]} cxd4 {[%emt 0:00:12]} 5. Nxd4 {[%emt 0:00:05]} Nc6 {[%emt 0:00:29]} 6. Bb5 {[%emt 0:00:04]} Bd7 {[%emt 0:00:18]} 7. Nxc6 {[%emt 0:00:20]} Bxc6 {[%emt 0:00:38]} 8. Qe2 {[%emt 0:01:03]} Nf6 {[%emt 0:09:59]} 9. O-O {[%emt 0:01:54]} dxe4 {[%emt 0:08:07]} 10. Bxc6+ {[%emt 0:05:32]} bxc6 {[%emt 0:00:38]} 11. Nxe4 {[%emt 0:00:05]} Nxe4 {[%emt 0:00:08]} 12. Qxe4 {[%emt 0:00:06]} Qd5 {[%emt 0:00:17]} 13. Qg4 {[%emt 0:00:43]} Bd6 {[%emt 0:08:11]} 14. Rd1 {[%emt 0:04:55]} h5 {[%emt 0:02:37]} 15. Qe2 {[%emt 0:03:52]} Qe5 {[%emt 0:00:09]} 16. Qxe5 {[%emt 0:03:22]} Bxe5 {[%emt 0:00:05]} 17. Be3 {[%emt 0:00:49]} a6 {[%emt 0:06:27]} 18. Bc5 {[%emt 0:08:01]} Rd8 {[%emt 0:09:27]} 19. g3 {[%emt 0:07:07]} Rd5 {[%emt 0:08:41]} 20. Ba3 {[%emt 0:01:39]} g5 {[%emt 0:05:57]} 21. c4 {[%emt 0:04:03]} Rd7 {[%emt 0:01:05]} 22. Rxd7 {[%emt 0:02:27]} Kxd7 {[%emt 0:00:12]} 23. Rd1+ {[%emt 0:05:40]} Kc7 {[%emt 0:01:47]} 24. Bb4 {[%emt 0:02:45]} c5 {[%emt 0:05:54]} 25. Bxc5 {[%emt 0:01:29]} Bxb2 {[%emt 0:00:09]} 26. Bd6+ {[%emt 0:03:18]} Kc6 {[%emt 0:05:26]} 27. Be7 {[%emt 0:00:38]} Be5 {[%emt 0:00:17]} 28. Bxg5 {[%emt 0:01:27]} Rb8 {[%emt 0:02:39]} 29. Be7 {[%emt 0:03:36]} Rb2 {[%emt 0:01:04]} 30. a3 {[%emt 0:00:36]} Rc2 {[%emt 0:00:53]} 31. c5 {[%emt 0:02:23]} Rc3 {[%emt 0:01:20]} 32. Bd6 {[%emt 0:00:22]} Bxd6 {[%emt 0:02:28]} 33. Rxd6+ {[%emt 0:00:27]} Kb5 {[%emt 0:01:15]} 34. Rb6+ {[%emt 0:03:03]} Ka5 {[%emt 0:00:09]} 35. Rb7 {[%emt 0:00:02]} Rxc5 {[%emt 0:01:26]} 36. Rxf7 {[%emt 0:00:06]} Rc3 {[%emt 0:00:05]} 37. Rf6 {[%emt 0:07:35]} Ka4 {[%emt 0:05:45]} 38. Rxe6 {[%emt 0:00:58]} a5 {[%emt 0:00:05]} 39. Re5 {[%emt 0:00:16]} 1-0

[Event "XII Paracin Festival 2019"]
[Site "Paracin"]
[Date "2019.07.06"]
[Round "3.9"]
[White "Nestorovic, Dejan"]
[Black "Lajthajm, Borko"]
[Result "1/2-1/2"]
[ECO "D53"]
[WhiteElo "2341"]
[BlackElo "2424"]
[Annotator "NA"]
[PlyCount "50"]
[EventDate "2019.07.05"]
[EventType "swiss"]
[EventCountry "SRB"]
[SourceTitle "playchess.com"]
[Source "ChessBase"]
[SourceQuality "1"]
[TimeControl "5400+30"]

1. d4 d5 2. c4 e6 3. Nc3 Nf6 4. Bg5 Be7 5. cxd5 exd5 6. e3 c6 7. Bd3 Nbd7 8. Qc2 Nf8 9. Nf3 Ng6 10. Nh4 Nxh4 11. Bxh4 Be6 12. O-O h6 13. Bxf6 Bxf6 14. b4 Qe7 15. Rab1 a6 16. a4 O-O 17. Rfc1 Rad8 18. Bh7+ Kh8 19. Bd3 b5 20. axb5 axb5 21. Ne2 Bd7 22. Bf5 Bxf5 23. Qxf5 Rd6 24. Nf4 Ra8 25. Ra1 Qb7 1/2-1/2

[Event "XII Paracin Festival 2019"]
[Site "Paracin"]
[Date "2019.07.06"]
[Round "3.10"]
[White "Janzelj, Tim"]
[Black "Chen, Peng"]
[Result "1-0"]
[ECO "E38"]
[WhiteElo "2416"]
[BlackElo "2328"]
[Annotator "NA"]
[PlyCount "121"]
[EventDate "2019.07.05"]
[EventType "swiss"]
[EventCountry "SRB"]
[SourceTitle "playchess.com"]
[Source "ChessBase"]
[SourceQuality "1"]
[TimeControl "5400+30"]

1. d4 {[%emt 0:00:00]} Nf6 {[%emt 0:01:23]} 2. c4 {[%emt 0:00:00]} e6 {[%emt 0:00:15]} 3. Nc3 {[%emt 0:00:02]} Bb4 {[%emt 0:00:04]} 4. Qc2 {[%emt 0:00:07]} c5 {[%emt 0:00:06]} 5. dxc5 {[%emt 0:00:12]} Bxc5 {[%emt 0:00:10]} 6. Nf3 {[%emt 0:01:11]} O-O {[%emt 0:00:27]} 7. Bf4 {[%emt 0:00:28]} Nc6 {[%emt 0:00:26]} 8. e3 {[%emt 0:00:11]} b6 {[%emt 0:01:17]} 9. Be2 {[%emt 0:02:56]} Be7 {[%emt 0:08:33]} 10. O-O {[%emt 0:00:24]} Nh5 {[%emt 0:01:07]} 11. Rad1 {[%emt 0:11:53]} Nxf4 {[%emt 0:12:11]} 12. exf4 {[%emt 0:00:20]} Qc7 {[%emt 0:01:28]} 13. g3 {[%emt 0:04:06]} a6 {[%emt 0:01:32]} 14. Nd5 {[%emt 0:02:50]} exd5 {[%emt 0:11:45]} 15. cxd5 {[%emt 0:00:14]} Bf6 {[%emt 0:01:34]} 16. Bd3 {[%emt 0:19:05]} h6 {[%emt 0:00:38]} 17. Bh7+ {[%emt 0:08:40]} Kh8 {[%emt 0:00:01]} 18. Be4 {[%emt 0:00:01]} Bb7 {[%emt 0:03:05]} 19. Rd2 {[%emt 0:08:29]} Rac8 {[%emt 0:11:04]} 20. dxc6 {[%emt 0:00:30]} dxc6 {[%emt 0:06:36]} 21. Rfd1 {[%emt 0:03:11]} Rcd8 {[%emt 0:06:13]} 22. Rxd8 {[%emt 0:10:37]} Rxd8 {[%emt 0:00:01]} 23. Rxd8+ {[%emt 0:00:57]} Qxd8 {[%emt 0:01:59]} 24. Ne5 {[%emt 0:00:13]} Bxe5 {[%emt 0:02:00]} 25. fxe5 {[%emt 0:00:02]} Qd7 {[%emt 0:00:25]} 26. Qd3 {[%emt 0:02:22]} Qxd3 {[%emt 0:02:20]} 27. Bxd3 {[%emt 0:00:01]} c5 {[%emt 0:00:07]} 28. f4 {[%emt 0:00:22]} Kg8 {[%emt 0:06:11]} 29. f5 {[%emt 0:00:48]} f6 {[%emt 0:02:37]} 30. e6 {[%emt 0:01:28]} Kf8 {[%emt 0:01:25]} 31. Kf2 {[%emt 0:00:01]} Ke7 {[%emt 0:00:36]} 32. Ke3 {[%emt 0:00:24]} a5 {[%emt 0:03:36]} 33. Bb5 {[%emt 0:00:26]} Bd5 {[%emt 0:01:17]} 34. a3 {[%emt 0:00:02]} Bb3 {[%emt 0:03:04]} 35. Ke4 {[%emt 0:05:26]} Kd6 {[%emt 0:00:35]} 36. Kf4 {[%emt 0:00:28]} Bd1 {[%emt 0:00:27]} 37. g4 {[%emt 0:01:24]} Bc2 {[%emt 0:00:26]} 38. Kg3 {[%emt 0:01:02]} g5 {[%emt 0:01:57]} 39. fxg6 {[%emt 0:03:30]} Bxg6 {[%emt 0:00:34]} 40. Bc4 {[%emt 0:00:10]} Be8 {[%emt 0:04:05]} 41. Kf4 {[%emt 0:02:07]} b5 {[%emt 0:00:03]} 42. Kf5 {[%emt 0:06:25]} Ke7 {[%emt 0:01:10]} 43. Bd5 {[%emt 0:00:10]} h5 {[%emt 0:03:08]} 44. h4 {[%emt 0:02:57]} hxg4 {[%emt 0:00:28]} 45. Kxg4 {[%emt 0:00:01]} a4 {[%emt 0:00:18]} 46. h5 {[%emt 0:00:22]} b4 {[%emt 0:00:45]} 47. h6 {[%emt 0:00:54]} Bg6 {[%emt 0:00:04]} 48. Kf4 {[%emt 0:00:17]} f5 {[%emt 0:00:35]} 49. Ke5 {[%emt 0:00:28]} Bh7 {[%emt 0:01:18]} 50. Bc4 {[%emt 0:01:50]} f4 {[%emt 0:02:57]} 51. Kxf4 {[%emt 0:00:38]} Kf6 {[%emt 0:00:21]} 52. Bd5 {[%emt 0:01:30]} Bg6 {[%emt 0:00:40]} 53. Be4 {[%emt 0:00:53]} Be8 {[%emt 0:00:32]} 54. h7 {[%emt 0:00:22]} Kg7 {[%emt 0:00:01]} 55. Ke5 {[%emt 0:00:27]} c4 {[%emt 0:00:29]} 56. axb4 {[%emt 0:00:39]} c3 {[%emt 0:00:21]} 57. bxc3 {[%emt 0:00:14]} a3 {[%emt 0:00:01]} 58. Bb1 {[%emt 0:00:50]} Bg6 {[%emt 0:00:14]} 59. Bxg6 {[%emt 0:01:37]} a2 {[%emt 0:00:03]} 60. h8=Q+ {[%emt 0:00:09]} Kxh8 {[%emt 0:00:02]} 61. e7 {[%emt 0:00:11]} 1-0

[Event "XII Paracin Festival 2019"]
[Site "Paracin"]
[Date "2019.07.06"]
[Round "3.11"]
[White "Ivanovic, Marko"]
[Black "McPhillips, Joseph"]
[Result "0-1"]
[ECO "C10"]
[WhiteElo "2267"]
[BlackElo "2412"]
[Annotator "NA"]
[PlyCount "64"]
[EventDate "2019.07.05"]
[EventType "swiss"]
[EventCountry "SRB"]
[SourceTitle "playchess.com"]
[Source "ChessBase"]
[SourceQuality "1"]
[TimeControl "5400+30"]

1. e4 {[%emt 0:04:56]} e6 {[%emt 0:00:00]} 2. d4 {[%emt 0:00:04]} d5 {[%emt 0:00:00]} 3. Nc3 {[%emt 0:00:08]} h6 {[%emt 0:00:00]} 4. Nf3 {[%emt 0:01:12]} Nf6 {[%emt 0:00:00]} 5. e5 {[%emt 0:00:09]} Ne4 {[%emt 0:00:00]} 6. a3 {[%emt 0:05:03]} c5 {[%emt 0:02:18]} 7. Bd3 {[%emt 0:01:06]} Ng5 {[%emt 0:07:20]} 8. Bxg5 {[%emt 0:04:39]} hxg5 {[%emt 0:00:03]} 9. dxc5 {[%emt 0:00:09]} Bxc5 {[%emt 0:01:27]} 10. Qd2 {[%emt 0:00:53]} g4 {[%emt 0:04:35]} 11. Ng5 {[%emt 0:03:43]} Be7 {[%emt 0:07:35]} 12. f4 {[%emt 0:01:26]} Nc6 {[%emt 0:06:35]} 13. Bb5 {[%emt 0:20:54]} f6 {[%emt 0:05:23]} 14. exf6 {[%emt 0:02:51]} gxf6 {[%emt 0:00:46]} 15. O-O-O {[%emt 0:01:25]} fxg5 {[%emt 0:01:54]} 16. Qd3 {[%emt 0:00:18]} Rh6 {[%emt 0:10:41]} 17. h3 {[%emt 0:01:35]} a6 {[%emt 0:01:17]} 18. hxg4 {[%emt 0:02:43]} Rxh1 {[%emt 0:00:47]} 19. Rxh1 {[%emt 0:11:45]} axb5 {[%emt 0:03:09]} 20. Rh8+ {[%emt 0:00:41]} Bf8 {[%emt 0:00:02]} 21. Qg6+ {[%emt 0:00:07]} Kd7 {[%emt 0:01:02]} 22. Rh7+ {[%emt 0:10:16]} Be7 {[%emt 0:09:06]} 23. f5 {[%emt 0:00:04]} Kd6 {[%emt 0:01:22]} 24. f6 {[%emt 0:09:17]} Bxf6 {[%emt 0:00:32]} 25. Nxb5+ {[%emt 0:00:03]} Kc5 {[%emt 0:00:11]} 26. Nc7 {[%emt 0:00:03]} Ne5 {[%emt 0:07:27]} 27. b4+ {[%emt 0:00:33]} Kc4 {[%emt 0:01:41]} 28. Qh5 {[%emt 0:01:42]} Rxa3 {[%emt 0:01:03]} 29. Kd2 {[%emt 0:01:36]} Qf8 {[%emt 0:04:08]} 30. Qh1 {[%emt 0:02:08]} Qxb4+ {[%emt 0:01:22]} 31. Ke2 {[%emt 0:00:02]} Qc3 {[%emt 0:04:47]} 32. Qf1 {[%emt 0:00:25]} Qxc2+ {[%emt 0:00:34]} 0-1